bitfinex/quotes_SOLUSD_20220113
["timestamp","ask_amount","ask_price","bid_price","bid_amount"]
[1642061755258,2.63,152.02,151.96,23.6246]
[1642061755460,2.88,152.02,151.96,23.6246]
[1642061755758,12.7497,152.02,151.96,23.6246]
[1642061757661,12.7497,152.02,151.95,9.8692]
[1642061757861,12.7497,152.02,151.95,15.8692]
[1642061758062,2.88,152.02,151.95,15.8692]
[1642061758965,0.25,152.02,151.95,15.8692]
[1642061759362,34.91626414,152.03,151.95,9.8692]
[1642061760063,34.91626414,152.03,151.95,15.8692]
[1642061761262,34.91626414,152.03,151.95,16.1192]
[1642061761565,34.91626414,152.03,151.95,16.3792]
[1642061762062,34.91626414,152.03,151.95,15.8692]
[1642061762264,25.04736414,152.03,151.95,16.96383918]
[1642061762464,25.04736414,152.03,151.95,17.21383918]
[1642061762663,23.1615,152.03,151.95,15.8692]
[1642061763765,23.1615,152.03,151.95,16.96383918]
[1642061763965,23.1615,152.03,151.95,17.21383918]
[1642061764169,23.1615,152.03,151.95,16.1192]
[1642061764366,23.1615,152.03,151.95,17.21383918]
[1642061764565,23.1615,152.03,151.95,17.47383918]
[1642061764865,23.1615,152.03,151.95,16.3792]
[1642061765066,23.1615,152.03,151.95,17.47383918]
[1642061765365,23.1615,152.03,151.95,16.3792]
[1642061765564,23.1615,152.03,151.95,17.47383918]
[1642061765767,23.1615,152.03,151.95,17.21383918]
[1642061765969,23.1615,152.03,151.96,2.63]
[1642061766166,23.1615,152.03,151.96,12.4985]
[1642061766365,23.1615,152.03,151.96,12.7485]
[1642061767167,33.0305,152.03,151.96,12.7485]
[1642061767369,33.0305,152.03,151.96,2.63]
[1642061767968,34.91636414,152.03,151.96,2.63]
[1642061768169,2.63,152.02,151.95,24.7392]
[1642061768370,9.8703,152.01,151.95,24.7392]
[1642061768569,10.1203,152.01,151.95,24.7392]
[1642061771076,9.8703,152.01,151.95,24.7392]
[1642061771277,14.38536414,152.02,151.95,24.9892]
[1642061771475,11.75536414,152.02,151.95,34.8585]
[1642061771674,11.75536414,152.02,151.95,35.1185]
[1642061772473,11.75536414,152.02,151.95,44.6185]
[1642061772875,9.8695,152.02,151.95,44.6185]
[1642061773374,9.8695,152.02,151.95,44.3585]
[1642061773575,10.1195,152.02,151.95,44.3585]
[1642061773775,9.8695,152.02,151.95,34.4892]
[1642061774876,9.8695,152.02,151.95,24.9892]
[1642061775077,10.1195,152.02,151.95,24.7392]
[1642061775779,9.8733,151.98,151.94,2.63]
[1642061775982,2.632,151.97,151.94,2.63]
[1642061776179,6.06439994,151.96,151.94,2.63]
[1642061776379,2.882,151.97,151.94,2.63]
[1642061776579,2.632,151.99,151.94,2.63]
[1642061776780,9.8715,151.99,151.94,2.63]
[1642061776982,10.1215,151.99,151.94,2.63]
[1642061777184,9.8715,151.99,151.94,2.63]
[1642061777382,9.8715,151.99,151.94,2.88]
[1642061778014,25.40826414,152.0,151.94,2.88]
[1642061779012,25.40826414,152.0,151.94,0.25]
[1642061779613,25.40826414,152.0,151.93,2.882]
[1642061779816,23.7724,152.0,151.93,2.882]
[1642061780212,33.6435,152.0,151.93,12.7526]
[1642061780615,33.6435,152.0,151.93,12.5026]
[1642061781314,23.7724,152.0,151.93,12.5026]
[1642061781515,23.7724,152.0,151.93,18.7526]
[1642061781714,0.25,152.0,151.93,18.7526]
[1642061782016,78.01406414,152.02,151.93,18.7526]
[1642061782614,76.1282,152.02,151.93,18.7526]
[1642061782817,78.7602,152.02,151.93,18.7526]
[1642061783016,22.9817,152.01,151.93,18.7526]
[1642061783414,23.2317,152.01,151.93,18.7526]
[1642061784618,23.2317,152.01,151.93,12.7526]
[1642061786322,33.102,152.01,151.93,12.7526]
[1642061787024,33.102,152.01,151.93,12.5026]
[1642061787628,12.5032,152.0,151.93,2.632]
[1642061787826,12.5032,152.0,151.92,24.3126]
[1642061788027,24.1664,151.99,151.92,24.3126]
[1642061788526,24.1664,151.99,151.92,24.5626]
[1642061789327,24.1664,151.99,151.92,34.4338]
[1642061790035,43.06840596,151.99,151.92,34.4338]
[1642061790232,42.81840596,151.99,151.92,34.4338]
[1642061791027,52.69000596,151.99,151.92,34.4338]
[1642061791632,52.69000596,151.99,151.92,40.4338]
[1642061791832,52.69000596,151.99,151.92,34.4338]
[1642061792234,42.81840596,151.99,151.92,34.4338]
[1642061792836,18.65200596,151.99,151.92,34.4338]
[1642061794535,18.65200596,151.99,151.92,40.4338]
[1642061795034,42.77760596,151.99,151.92,34.4338]
[1642061796136,52.64920596,151.99,151.92,34.4338]
[1642061796536,42.77760596,151.99,151.92,34.4338]
[1642061796736,18.65200596,151.99,151.92,34.4338]
[1642061796936,18.65200596,151.99,151.92,40.6938]
[1642061797335,18.65200596,151.99,151.93,2.632]
[1642061797536,18.65200596,151.99,151.95,9.8692]
[1642061798137,18.65200596,151.99,151.93,0.25]
[1642061798347,18.65200596,151.99,151.92,32.9446]
[1642061798538,18.90200596,151.99,151.92,24.3126]
[1642061798938,18.65200596,151.99,151.92,24.3126]
[1642061799438,18.65200596,151.99,151.93,2.632]
[1642061799638,18.65200596,151.99,151.93,12.5021]
[1642061799838,18.65200596,151.99,151.93,12.7521]
[1642061800238,18.65200596,151.99,151.93,13.0121]
[1642061800638,24.8379,152.01,151.93,13.0121]
[1642061800840,25.0879,152.01,151.93,12.7521]
[1642061801039,34.9583,152.01,151.93,12.7521]
[1642061801839,37.5903,152.01,151.93,12.7521]
[1642061802541,37.5903,152.01,151.93,13.0121]
[1642061803143,27.7199,152.01,151.93,13.0121]
[1642061804044,27.7199,152.01,151.93,10.3801]
[1642061804678,27.7199,152.01,151.93,10.1301]
[1642061805278,37.5903,152.01,151.93,10.1301]
[1642061806777,37.5903,152.01,151.93,10.3801]
[1642061806977,37.5903,152.01,151.93,10.1301]
[1642061807377,37.5903,152.01,151.93,12.7621]
[1642061807578,27.7199,152.01,151.93,13.0121]
[1642061807978,27.7199,152.01,151.93,12.7621]
[1642061808181,27.7199,152.01,151.93,13.0121]
[1642061808378,27.7199,152.01,151.93,44.18779016]
[1642061808777,27.7199,152.01,151.93,53.68779016]
[1642061809778,25.0879,152.01,151.93,53.68779016]
[1642061816985,25.0879,152.01,151.93,22.5121]
[1642061818086,25.0879,152.01,151.93,22.2521]
[1642061818486,25.0879,152.01,151.93,24.0809287]
[1642061819786,25.0879,152.01,151.93,23.8309287]
[1642061819986,25.0879,152.01,151.93,24.0809287]
[1642061820786,25.0879,152.01,151.93,22.0021]
[1642061820989,34.9583,152.01,151.93,22.2521]
[1642061821491,4.51786414,152.03,151.93,28.2521]
[1642061821692,1.88586414,152.03,151.98,9.8671]
[1642061821989,1.88586414,152.02,151.98,9.8671]
[1642061822690,1.88586414,152.02,151.95,2.63]
[1642061822891,58.13389064,152.05,151.95,4.7088287]
[1642061823090,0.25,152.02,151.95,4.7088287]
[1642061823394,0.25,152.02,151.95,10.7088287]
[1642061823590,0.25,152.02,151.95,8.88]
[1642061823789,0.25,152.02,151.95,6.25]
[1642061823993,22.559,152.02,151.95,16.1192]
[1642061824195,22.559,152.02,151.95,10.1192]
[1642061824395,22.559,152.02,151.95,16.1192]
[1642061824591,2.88,152.03,151.95,16.1192]
[1642061824592,2.88,152.03,151.95,17.20708273]
[1642061824794,0.25,152.03,151.96,2.63]
[1642061824993,25.79216414,152.04,151.96,25.9687]
[1642061825491,25.79216414,152.04,151.96,26.2287]
[1642061825692,23.9063,152.04,151.98,9.8669]
[1642061825894,26.5363,152.04,151.98,9.8669]
[1642061826895,23.9063,152.04,151.98,9.8669]
[1642061829396,2.63,152.03,151.94,1.8288287]
[1642061829596,2.88,152.03,151.94,1.8288287]
[1642061829797,24.603,152.02,151.94,1.8288287]
[1642061829997,2.63,152.01,151.94,1.8288287]
[1642061830197,2.63,152.01,151.95,25.13901769]
[1642061830423,0.25,152.01,151.95,25.13901769]
[1642061830998,24.603,152.02,151.95,25.38901769]
[1642061831198,24.603,152.02,151.96,2.63]
[1642061831199,22.603,152.02,151.96,2.63]
[1642061831599,75.4411,152.03,151.96,3.14]
[1642061832200,75.4411,152.03,151.97,9.8676]
[1642061832499,75.4411,152.03,151.97,10.1176]
[1642061832902,75.6911,152.03,151.97,10.1176]
[1642061836105,0.25,152.03,151.97,10.1176]
[1642061836305,24.1729,152.05,151.97,10.1176]
[1642061836506,26.8029,152.05,151.97,10.1176]
[1642061838206,36.6707,152.05,151.97,10.1176]
[1642061841109,34.0407,152.05,151.97,10.1176]
[1642061842309,36.6707,152.05,151.97,10.1176]
[1642061843613,34.0407,152.05,151.97,10.1176]
[1642061846342,35.92656414,152.05,151.97,10.1176]
[1642061848242,35.67656414,152.05,151.97,10.1176]
[1642061848443,33.7907,152.05,151.97,10.1176]
[1642061849547,34.0407,152.05,151.97,10.1176]
[1642061850949,35.92656414,152.05,151.97,10.1176]
[1642061856253,35.67656414,152.05,151.97,10.1176]
[1642061856454,25.80876414,152.05,151.98,2.63]
[1642061856656,25.80876414,152.05,151.98,12.4972]
[1642061856852,25.80876414,152.05,151.98,12.7472]
[1642061857454,24.1729,152.05,151.98,12.7472]
[1642061858157,24.1729,152.05,151.98,12.4972]
[1642061858956,24.1729,152.05,151.98,9.8672]
[1642061860861,34.0409,152.05,151.98,9.8672]
[1642061862159,35.92676414,152.05,151.98,9.8672]
[1642061862361,26.05876414,152.05,151.98,9.8672]
[1642061862962,26.05876414,152.05,151.98,10.1172]
[1642061863566,25.80876414,152.05,151.98,10.1172]
[1642061864063,23.9229,152.05,151.98,10.1172]
[1642061864966,24.1729,152.05,151.98,10.1172]
[1642061868372,23.9229,152.05,151.98,10.1172]
[1642061868573,23.9229,152.05,151.98,10.3772]
[1642061869476,24.1729,152.05,151.98,10.3772]
[1642061872483,24.1729,152.05,151.98,9.8672]
[1642061872685,24.1729,152.05,151.98,10.1172]
[1642061872884,24.1729,152.05,151.97,2.63]
[1642061873088,26.8029,152.05,151.97,12.7481]
[1642061873887,26.8029,152.05,151.97,13.0081]
[1642061874091,24.1729,152.05,151.97,13.0081]
[1642061874893,23.9229,152.05,151.97,13.0081]
[1642061876192,24.1729,152.05,151.97,13.0081]
[1642061877293,24.1729,152.05,151.97,12.7481]
[1642061878796,34.0409,152.05,151.97,12.7481]
[1642061879317,35.92676414,152.05,151.97,12.7481]
[1642061879516,38.55676414,152.05,151.97,12.7481]
[1642061879719,38.55676414,152.05,151.97,10.1181]
[1642061880717,35.92676414,152.05,151.97,10.1181]
[1642061881121,26.05876414,152.05,151.97,10.3781]
[1642061881418,24.1729,152.05,151.97,10.3781]
[1642061885922,23.9229,152.05,151.97,10.3781]
[1642061886125,23.9229,152.05,151.97,10.1181]
[1642061886322,25.80876414,152.05,151.97,10.1181]
[1642061887323,26.05876414,152.05,151.97,10.1181]
[1642061887523,25.80876414,152.05,151.97,10.1181]
[1642061888322,23.9229,152.05,151.97,10.1181]
[1642061888522,23.9229,152.05,151.97,16.1181]
[1642061888725,23.9229,152.05,151.97,10.1181]
[1642061889322,23.9229,152.05,151.97,11.9469287]
[1642061890023,23.9229,152.05,151.97,17.9469287]
[1642061890224,23.9229,152.05,151.97,16.1181]
[1642061890423,23.9229,152.05,151.97,10.1181]
[1642061891724,24.1729,152.05,151.97,10.1181]
[1642061892425,24.1729,152.05,151.97,16.3781]
[1642061896530,24.1729,152.05,151.97,16.1181]
[1642061898636,24.1729,152.05,151.97,10.1181]
[1642061899634,26.8029,152.05,151.97,10.1181]
[1642061899834,2.88,152.05,151.98,27.54410393]
[1642061900035,3.77235808,152.09,151.98,27.54410393]
[1642061900036,9.4308952,152.2,152.05,1.08788273]
[1642061900236,9.4308952,152.2,152.12,118.71]
[1642061900434,9.4308952,152.2,152.14,118.71]
[1642061900435,2.631,152.19,152.14,118.71]
[1642061900634,2.631,152.19,152.17,118.71]
[1642061900836,2.631,152.19,152.18,12.128]
[1642061901034,124.40527749,152.26,152.18,12.128]
[1642061901035,100.0,152.26,152.18,137.348]
[1642061901235,100.0,152.26,152.23,116.21]
[1642061901536,14.73873231,152.24,152.23,131.71]
[1642061901734,14.73873231,152.24,152.23,125.71]
[1642061901938,100.0,152.26,152.23,125.97]
[1642061902138,100.0,152.26,152.25,118.71]
[1642061902335,100.0,152.26,152.25,128.21]
[1642061902536,100.0,152.26,152.25,147.8451244]
[1642061902736,34.3585,152.26,152.25,147.8451244]
[1642061903138,34.3585,152.26,152.25,148.0951244]
[1642061903339,34.3585,152.26,152.25,157.9429244]
[1642061903540,34.3585,152.26,152.25,156.85504167]
[1642061903739,34.3585,152.26,152.25,144.3178]
[1642061903941,34.3585,152.26,152.25,144.0578]
[1642061904142,34.3585,152.26,152.25,144.3178]
[1642061905540,34.3585,152.26,152.25,145.40568273]
[1642061905741,34.3585,152.26,152.25,144.3178]
[1642061906140,34.3585,152.26,152.25,145.40568273]
[1642061906342,34.3585,152.26,152.25,144.3378]
[1642061906540,34.3585,152.26,152.25,144.0778]
[1642061906746,34.3585,152.26,152.25,145.42568273]
[1642061907041,2.626,152.34,152.26,0.99710006]
[1642061907241,1.2925574,152.35,152.31,9.8446]
[1642061907441,1.2925574,152.35,152.31,140.6806]
[1642061907644,1.2925574,152.35,152.31,146.9306]
[1642061907842,1.2925574,152.35,152.31,159.47605422]
[1642061908041,1.2925574,152.35,152.31,160.56393695]
[1642061908242,1.2925574,152.35,152.31,163.85613692]
[1642061908446,5.74e-05,152.35,152.31,176.46289554]
[1642061908742,5.74e-05,152.35,152.34,128.5516]
[1642061908943,5.74e-05,152.35,152.34,144.3116]
[1642061909142,5.74e-05,152.35,152.34,158.19472029]
[1642061910042,5.74e-05,152.35,152.34,163.85192026]
[1642061910244,5.74e-05,152.35,152.34,151.3066827]
[1642061910445,5.74e-05,152.35,152.34,148.1716827]
[1642061910644,5.74e-05,152.35,152.34,138.0516]
[1642061910845,5.74e-05,152.35,152.34,128.21]
[1642061911044,5.74e-05,152.35,152.34,131.24219997]
[1642061911245,2.6250574,152.35,152.32,9.5]
[1642061911449,5.74e-05,152.35,152.24,9.5]
[1642061911645,2.626,152.34,152.24,9.5]
[1642061911845,19.84070181,152.33,152.24,9.5]
[1642061912047,2.626,152.32,152.24,10.58788273]
[1642061912245,2.626,152.32,152.25,9.8492]
[1642061912447,2.876,152.32,152.24,9.5]
[1642061912644,12.7261,152.32,152.24,9.5]
[1642061913045,12.7261,152.32,152.22,2.626]
[1642061913246,14.39868303,152.32,152.18,30.43668273]
[1642061913445,9.5,152.31,152.18,11.08348273]
[1642061913644,9.5,152.31,152.14,19.2414]
[1642061913645,9.8546,152.25,152.14,19.2414]
[1642061913845,2.628,152.24,152.14,9.5]
[1642061914045,2.878,152.24,152.14,9.5]
[1642061914248,0.25,152.24,152.14,9.5]
[1642061914445,2.628,152.23,152.14,9.5]
[1642061914846,27.52016997,152.22,152.14,9.5]
[1642061915046,2.628,152.21,152.14,19.3563]
[1642061915247,27.52016997,152.22,152.14,74.77666519]
[1642061915446,27.52016997,152.22,152.15,51.70448246]
[1642061915648,27.52016997,152.22,152.15,54.33248246]
[1642061915847,2.628,152.21,152.15,51.70448246]
[1642061916050,2.628,152.21,152.16,51.70448246]
[1642061916347,12.4855,152.21,152.13,51.70448246]
[1642061916751,12.7355,152.21,152.14,51.6999509]
[1642061916953,12.7355,152.21,152.15,51.6999509]
[1642061917452,12.7355,152.21,152.11,51.6999509]
[1642061917851,12.7355,152.21,152.1,51.6999509]
[1642061919052,12.4855,152.21,152.1,51.9599509]
[1642061919253,2.628,152.21,152.1,51.9599509]
[1642061919454,2.628,152.21,152.1,57.9599509]
[1642061919655,2.628,152.21,152.11,50.48727763]
[1642061919855,2.628,152.21,152.12,9.8571]
[1642061920055,2.628,152.21,152.12,60.59437763]
[1642061920254,2.628,152.21,152.13,50.48727763]
[1642061920889,2.628,152.21,152.13,60.34367763]
[1642061921483,0.04,152.21,152.13,63.22167763]
[1642061921684,0.04,152.21,152.13,63.48167763]
[1642061921884,0.04,152.21,152.14,51.31161141]
[1642061922084,0.04,152.21,152.15,12.4827]
[1642061922387,0.04,152.21,152.15,63.79431141]
[1642061922884,0.04,152.21,152.15,61.16631141]
[1642061923083,0.04,152.21,152.15,51.31161141]
[1642061923285,2.668,152.21,152.15,52.4963242]
[1642061923485,2.918,152.21,152.15,52.4963242]
[1642061923884,2.918,152.21,152.11,52.4963242]
[1642061924085,2.668,152.21,152.11,61.3843242]
[1642061924286,0.04,152.21,152.12,52.4963242]
[1642061924492,0.04,152.21,152.14,9.8555]
[1642061924686,0.04,152.21,152.14,55.41730624]
[1642061924894,0.04,152.21,152.14,45.56180624]
[1642061925889,2.668,152.21,152.14,45.56180624]
[1642061926089,2.918,152.21,152.14,45.56180624]
[1642061926690,2.918,152.21,152.14,55.41750624]
[1642061926889,0.29,152.21,152.14,55.41750624]
[1642061927090,0.04,152.21,152.14,55.41750624]
[1642061928390,0.04,152.21,152.14,40.25751262]
[1642061929791,0.04,152.21,152.14,50.01751262]
[1642061929993,0.04,152.21,152.15,30.40181262]
[1642061930190,0.04,152.21,152.16,9.8542]
[1642061930389,0.04,152.21,152.17,2.628]
[1642061930591,0.04,152.21,152.17,31.38505463]
[1642061931091,0.04,152.21,152.17,31.12505463]
[1642061931291,0.04,152.21,152.17,28.49705463]
[1642061932495,0.04,152.21,152.15,32.61267928]
[1642061936097,0.04,152.21,152.15,32.86267928]
[1642061937402,0.04,152.21,152.15,33.12267928]
[1642061938001,0.04,152.21,152.16,29.80145683]
[1642061938202,0.04,152.21,152.17,2.628]
[1642061938403,0.04,152.21,152.17,32.42945683]
[1642061938601,0.04,152.21,152.17,32.67945683]
[1642061938802,0.04,152.21,152.17,30.05145683]
[1642061939505,0.04,152.21,152.17,29.80145683]
[1642061940307,0.04,152.21,152.17,29.50287886]
[1642061940508,0.04,152.21,152.17,24.39339614]
[1642061941108,0.04,152.21,152.14,24.39339614]
[1642061941507,0.04,152.21,152.14,24.90339614]
[1642061942512,0.04,152.21,152.14,30.90339614]
[1642061942713,0.04,152.21,152.14,24.90339614]
[1642061943211,0.04,152.21,152.14,34.75909614]
[1642061944510,0.04,152.21,152.14,34.24909614]
[1642061944712,2.628,152.2,152.14,24.39339614]
[1642061945115,2.878,152.2,152.14,24.39339614]
[1642061945511,2.878,152.2,152.14,17.91352821]
[1642061945712,9.859,152.19,152.06,27.77432821]
[1642061945912,2.629,152.18,152.14,17.91352821]
[1642061946114,2.629,152.18,152.07,20.54152821]
[1642061946317,2.879,152.18,152.08,17.91352821]
[1642061946517,31.15327077,152.18,152.07,24.21107297]
[1642061946950,31.15327077,152.18,152.07,24.46107297]
[1642061947150,30.90327077,152.18,152.07,24.46107297]
[1642061947347,28.27427077,152.18,152.08,12.5584]
[1642061947547,28.27427077,152.18,152.08,22.5684]
[1642061948349,28.27427077,152.18,152.08,23.65628273]
[1642061948548,28.27427077,152.18,152.08,29.65628273]
[1642061948748,28.27427077,152.18,152.08,22.5684]
[1642061949449,28.52427077,152.18,152.08,22.5684]
[1642061950150,28.52427077,152.18,152.08,22.3084]
[1642061950350,31.15327077,152.18,152.08,22.3084]
[1642061951354,28.52427077,152.18,152.14,0.02]
[1642061952355,28.52427077,152.18,152.08,45.2359]
[1642061952556,28.52427077,152.18,152.1,9.8577]
[1642061952954,28.52427077,152.18,152.1,10.3677]
[1642061953158,28.52427077,152.18,152.1,10.1077]
[1642061953354,28.56427077,152.18,152.1,10.1077]
[1642061954557,28.56427077,152.18,152.1,10.3677]
[1642061954956,28.56427077,152.18,152.1,10.1077]
[1642061955157,28.56427077,152.18,152.11,2.629]
[1642061955759,2.629,152.17,152.08,22.008]
[1642061955959,2.879,152.17,152.08,19.889]
[1642061956359,2.879,152.17,152.08,9.52]
[1642061956962,12.7391,152.17,152.08,9.52]
[1642061957158,0.25,152.17,152.09,2.629]
[1642061957559,28.56427077,152.18,152.1,0.02]
[1642061958160,38.42357077,152.18,152.1,0.02]
[1642061958764,2.629,152.17,152.1,0.02]
[1642061958963,2.879,152.17,152.1,0.02]
[1642061961461,12.739,152.17,152.1,0.02]
[1642061963967,2.879,152.17,152.1,0.02]
[1642061965973,12.7389,152.17,152.1,0.02]
[1642061966776,66.12,152.16,152.1,0.02]
[1642061966972,9.8621,152.14,152.1,0.02]
[1642061967172,2.629,152.13,152.1,0.02]
[1642061967371,19.08660101,152.12,152.1,0.02]
[1642061967572,19.33660101,152.12,152.1,0.02]
[1642061969175,29.19990101,152.12,152.1,0.02]
[1642061972880,10.1133,152.12,152.1,0.02]
[1642061973080,0.25,152.12,152.1,0.02]
[1642061973283,9.8624,152.13,152.1,0.02]
[1642061973484,0.04,152.12,152.1,0.02]
[1642061978484,2.669,152.12,152.1,0.02]
[1642061978887,2.919,152.12,152.1,0.02]
[1642061979291,12.7822,152.12,152.1,0.02]
[1642061980090,12.7822,152.12,152.05,92.9]
[1642061982716,10.1532,152.12,152.05,92.9]
[1642061987117,0.29,152.12,152.05,92.9]
[1642061987320,0.29,152.12,152.05,95.53]
[1642061987517,0.04,152.12,152.05,95.53]
[1642061989124,0.04,152.12,152.05,105.3915]
[1642061991729,0.04,152.12,152.05,167.51578063]
[1642061991930,0.04,152.12,152.06,1.09201045]
[1642061992132,0.04,152.12,152.09,9.8577]
[1642061992531,0.04,152.12,152.1,7.15641039]
[1642061992930,0.04,152.12,152.11,1.09201045]
[1642061993332,0.04,152.12,152.1,8.95339994]
[1642061993532,0.04,152.12,152.1,10.04541039]
[1642061994332,0.04,152.12,152.1,19.90341039]
[1642061995333,0.04,152.12,152.1,18.55139994]
[1642061996539,0.04,152.12,152.1,17.01441039]
[1642061998943,0.04,152.12,152.1,15.92239994]
[1642061999744,0.04,152.12,152.11,27.19039017]
[1642061999946,0.04,152.12,152.11,38.39950062]
[1642062000144,0.04,152.12,152.11,59.0098148]
[1642062000342,0.04,152.12,152.11,65.2598148]
[1642062001545,0.04,152.12,152.11,67.8888148]
[1642062003149,0.04,152.12,152.11,40.69842463]
[1642062004147,0.04,152.12,152.11,40.43842463]
[1642062004748,0.04,152.12,152.11,29.32811045]
[1642062005451,0.04,152.12,152.11,23.32811045]
[1642062006453,0.04,152.12,152.11,21.9861]
[1642062007585,0.04,152.12,152.11,19.3571]
[1642062007780,0.04,152.12,152.11,19.6171]
[1642062008582,0.04,152.12,152.11,20.70911045]
[1642062009383,0.04,152.12,152.11,19.6171]
[1642062009582,0.04,152.12,152.11,19.8671]
[1642062009784,0.04,152.12,152.11,26.95911045]
[1642062009983,0.04,152.12,152.11,93.07911045]
[1642062010988,0.04,152.12,152.11,95.70811045]
[1642062014191,0.04,152.12,152.11,29.58811045]
[1642062014389,0.04,152.12,152.11,19.3571]
[1642062014690,0.04,152.12,152.11,9.5]
[1642062014889,0.04,152.12,152.1,6.06439994]
[1642062017191,0.04,152.12,152.1,15.92309994]
[1642062017390,0.04,152.12,152.11,1.09201045]
[1642062017794,0.04,152.12,152.11,1.35201045]
[1642062018030,0.04,152.12,152.11,0.26]
[1642062018393,0.04,152.12,152.11,9.8571]
[1642062018593,0.04,152.12,152.11,10.1171]
[1642062019493,0.04,152.12,152.11,9.8571]
[1642062019893,0.04,152.12,152.1,6.06439994]
[1642062021997,0.04,152.12,152.1,16.18279994]
[1642062022198,0.04,152.12,152.1,15.92279994]
[1642062022397,0.04,152.12,152.11,1.09201045]
[1642062022801,0.04,152.12,152.11,1.35201045]
[1642062023001,0.04,152.12,152.1,6.32439994]
[1642062023202,0.04,152.12,152.11,1.09201045]
[1642062023800,0.04,152.12,152.11,10.94981045]
[1642062024802,0.04,152.12,152.11,26.70981045]
[1642062025004,0.04,152.12,152.11,27.02981045]
[1642062025205,1.88071943,152.21,152.16,9.8533]
[1642062025604,1.88071943,152.21,152.16,17.45531045]
[1642062025805,1.88071943,152.21,152.16,17.20531045]
[1642062026005,1.88071943,152.21,152.17,9.5]
[1642062026204,3.76467889,152.25,152.19,9.8516]
[1642062026407,3.76467889,152.3,152.2,9.5]
[1642062026606,3.76467889,152.3,152.2,16.01]
[1642062026807,3.76467889,152.3,152.2,17.10201045]
[1642062027008,27.48226922,152.29,152.2,17.10201045]
[1642062027208,27.48226922,152.29,152.21,2.626]
[1642062027408,27.48226922,152.29,152.22,9.5]
[1642062027610,27.48226922,152.29,152.23,9.85]
[1642062028012,27.48226922,152.29,152.23,10.36]
[1642062028211,96.9544,152.33,152.24,2.626]
[1642062028611,96.9544,152.33,152.25,1.09201045]
[1642062028809,97.2044,152.33,152.25,1.09201045]
[1642062029011,97.2044,152.33,152.25,6.0]
[1642062029210,23.9479354,152.32,152.25,6.0]
[1642062029609,24.1979354,152.32,152.25,6.0]
[1642062029811,24.1979354,152.32,152.24,15.5]
[1642062030222,24.1979354,152.32,152.25,9.8488]
[1642062030614,24.1979354,152.32,152.25,15.8488]
[1642062030814,24.1979354,152.32,152.25,6.0]
[1642062031213,24.1979354,152.32,152.24,15.5]
[1642062031413,24.1979354,152.32,152.24,25.3496]
[1642062032013,24.1979354,152.32,152.24,19.3496]
[1642062032214,24.1979354,152.32,152.24,19.6096]
[1642062032414,23.9479354,152.32,152.24,19.6096]
[1642062032614,23.9479354,152.32,152.24,19.8596]
[1642062032816,23.9479354,152.32,152.26,9.8483]
[1642062033342,96.9544,152.33,152.26,9.8483]
[1642062033939,97.2044,152.33,152.26,9.8483]
[1642062034940,0.25,152.33,152.26,35.35418349]
[1642062035140,2.626,152.34,152.26,10.1083]
[1642062035340,2.626,152.35,152.26,16.3583]
[1642062035539,2.626,152.35,152.26,17.19757546]
[1642062036043,2.626,152.35,152.26,16.1083]
[1642062036444,24.19902913,152.36,152.26,16.1083]
[1642062036639,24.19902913,152.36,152.27,2.626]
[1642062036839,78.0974,152.38,152.3,9.8457]
[1642062036840,2.626,152.38,152.3,9.8457]
[1642062037041,2.626,152.38,152.3,19.6057]
[1642062037240,49.20611174,152.39,152.3,19.8557]
[1642062037439,46.58111174,152.39,152.3,20.94497546]